bitfinex/quotes_SOLUSD_20250930
["timestamp","ask_amount","ask_price","bid_price","bid_amount"]
[1759262351344,7.129713,208.89,208.86,34.54]
[1759262351547,0.69,208.88,208.86,34.54]
[1759262351923,6.439713,208.89,208.86,34.54]
[1759262352128,4.78743776,208.88,208.86,34.54]
[1759262352326,4.78743776,208.88,208.87,34.54]
[1759262352526,0.1,208.9,208.87,35.23]
[1759262353319,0.1,208.9,208.88,0.69]
[1759262353526,0.1,208.9,208.89,0.69]
[1759262353961,0.1,208.9,208.87,34.54]
[1759262354268,0.1,208.9,208.88,5.47738642]
[1759262354960,0.1,208.9,208.88,4.78738642]
[1759262355165,0.1,208.9,208.89,0.69]
[1759262355353,0.1,208.9,208.89,14.28559401]
[1759262356057,0.1,208.96,208.93,34.39559401]
[1759262356267,0.1,208.96,208.95,18.38142794]
[1759262356766,0.1,208.96,208.95,33.536642]
[1759262357064,0.79,209.1,208.99,13.59559401]
[1759262357264,0.79,209.1,209.01,13.59559401]
[1759262357432,4.35503299,209.09,209.01,13.59559401]
[1759262357627,4.35503299,209.09,209.02,34.6]
[1759262357828,4.35503299,209.05,209.03,34.6]
[1759262358049,0.67,209.07,209.03,34.6]
[1759262358253,5.45349253,209.06,209.03,34.6]
[1759262358460,0.67,209.05,209.03,34.6]
[1759262359041,5.02503299,209.04,209.0,37.34]
[1759262359376,5.02503299,209.03,209.01,34.6]
[1759262359667,0.67,209.02,209.01,34.6]
[1759262360044,0.95432314,209.05,209.01,34.6]
[1759262360252,9.1391347,209.03,209.0,37.34]
[1759262360437,9.8091347,209.03,209.01,34.6]
[1759262360631,0.67,209.02,209.01,34.6]
[1759262361266,4.78410171,209.03,209.0,37.34]
[1759262361468,4.78410171,209.03,209.01,34.58]
[1759262361469,9.8091347,209.03,209.01,34.58]
[1759262361670,5.45410171,209.03,209.01,34.58]
[1759262361855,0.67,209.02,209.01,34.58]
[1759262362042,5.02503299,209.02,209.0,37.34]
[1759262362244,9.80949306,209.01,209.0,37.34]
[1759262362442,0.67,209.04,209.0,71.9]
[1759262362659,0.67,209.03,209.0,71.9]
[1759262362972,4.35503299,209.07,209.01,0.71]
[1759262363172,0.67,209.08,209.01,0.71]
[1759262363470,4.35503299,209.07,209.01,0.71]
[1759262364055,0.67,209.08,209.01,0.71]
[1759262364355,4.35503299,209.07,209.01,0.71]
[1759262365046,4.35503299,209.06,209.01,0.71]
[1759262365644,17.41000583,209.08,209.0,71.9]
[1759262365645,5.06503299,209.05,209.0,71.9]
[1759262365972,4.35503299,209.05,209.0,72.55]
[1759262366144,4.35503299,209.05,209.0,77.33468841]
[1759262366344,9.13842128,209.06,209.0,76.68468841]
[1759262367060,4.35503299,209.04,209.0,71.9]
[1759262367247,4.35503299,209.05,209.01,0.65]
[1759262367567,4.35503299,209.05,209.0,71.9]
[1759262367744,5.06503299,209.05,209.0,71.9]
[1759262367946,0.71,209.05,209.0,71.9]
[1759262368365,9.13835669,209.06,209.0,77.33465304]
[1759262368769,9.13835669,209.06,209.0,77.3346864]
[1759262369175,4.35503299,209.04,209.0,71.9]
[1759262369379,4.35503299,209.05,209.01,34.52]
[1759262369777,9.13835669,209.06,209.01,34.52]
[1759262369966,0.71,209.05,209.01,34.52]
[1759262370150,9.13835669,209.06,209.01,35.17]
[1759262370349,9.13948739,209.02,209.0,37.34]
[1759262370550,5.4944544,209.02,209.01,34.52]
[1759262371085,4.35503299,209.07,209.01,35.17]
[1759262371261,4.78262948,209.09,209.03,13.59559401]
[1759262371467,4.78262948,209.09,209.04,35.19]
[1759262372279,0.1,209.1,209.09,13.59559401]
[1759262372476,0.1,209.1,209.09,53.56822349]
[1759262373286,0.1,209.1,209.09,48.78559401]
[1759262373459,0.1,209.1,209.09,53.85254663]
[1759262373661,0.1,209.1,209.09,69.68559401]
[1759262374060,0.1,209.1,209.09,35.04559401]
[1759262374275,0.1,209.1,209.09,69.68559401]
[1759262374964,0.1,209.1,209.09,74.46822349]
[1759262375257,0.1,209.1,209.09,69.68559401]
[1759262375681,0.1,209.11,209.1,0.28432314]
[1759262375982,0.1,209.11,209.1,35.32991715]
[1759262376150,4.78036543,209.19,209.11,13.59559401]
[1759262376358,4.78036543,209.19,209.12,0.65]
[1759262376559,9.13514771,209.2,209.14,13.59559401]
[1759262376789,9.13514771,209.2,209.15,34.64]
[1759262376988,5.06503299,209.19,209.16,34.62]
[1759262377193,5.06503299,209.19,209.1,21.08432314]
[1759262377194,0.71,209.18,209.17,34.66]
[1759262377360,5.06503299,209.18,209.17,34.66]
[1759262377561,5.06503299,209.18,209.08,13.59559401]
[1759262377779,4.35503299,209.11,209.09,34.68]
[1759262377993,4.35503299,209.12,209.09,34.68]
[1759262378297,5.06503299,209.12,209.09,34.68]
[1759262378462,4.78217206,209.11,209.09,34.68]
[1759262378662,9.13720505,209.11,209.09,34.68]
[1759262378864,9.84720505,209.11,209.09,34.68]
[1759262379082,4.78217206,209.11,209.09,34.68]
[1759262379390,21.8026352,209.11,209.1,37.3]
[1759262379582,17.44760221,209.11,209.1,71.98]
[1759262379890,21.8026352,209.11,209.1,71.98]
[1759262380099,9.84720505,209.11,209.1,71.98]
[1759262380274,5.49217206,209.11,209.1,71.98]
[1759262380460,4.78217206,209.11,209.1,71.98]
[1759262380666,5.49217206,209.11,209.1,71.98]
[1759262381061,9.84720505,209.11,209.1,71.98]
[1759262381263,0.2893,209.12,209.1,72.63]
[1759262381460,0.2893,209.12,209.1,37.95]
[1759262381662,0.2893,209.12,209.11,34.68]
[1759262382168,0.2893,209.12,209.1,37.3]
[1759262382385,5.07143428,209.12,209.11,34.68]
[1759262382566,0.2893,209.12,209.11,35.33]
[1759262382988,0.2893,209.12,209.11,34.68]
[1759262383704,5.07124338,209.12,209.1,37.3]
[1759262383886,5.07124338,209.12,209.11,34.66]
[1759262384189,0.2893,209.12,209.11,48.90559401]
[1759262384767,0.2893,209.12,209.11,48.25559401]
[1759262385378,0.2893,209.12,209.11,34.66]
[1759262385684,0.2893,209.12,209.1,37.3]
[1759262385685,5.07131904,209.12,209.1,37.3]
[1759262386190,0.71,209.11,209.1,37.3]
[1759262386389,9.84720505,209.11,209.1,71.94]
[1759262387182,0.2893,209.12,209.1,71.94]
[1759262387183,5.07126335,209.12,209.1,37.3]
[1759262387365,0.71,209.11,209.1,71.96]
[1759262387689,5.07126335,209.12,209.1,72.04]
[1759262388696,0.71,209.2,209.12,13.59559401]
[1759262388877,4.77988623,209.21,209.12,13.59559401]
[1759262388878,5.06503299,209.19,209.13,34.74]
[1759262389060,4.35503299,209.17,209.11,13.59559401]
[1759262389264,0.71,209.18,209.12,34.78]
[1759262389871,0.71,209.18,209.13,34.78]
[1759262390076,0.71,209.17,209.11,13.59559401]
[1759262390291,0.71,209.17,209.12,34.78]
[1759262390692,4.78102887,209.16,209.12,34.78]
[1759262390996,16.73360106,209.16,209.12,34.78]
[1759262391298,0.71,209.15,209.1,37.3]
[1759262391503,0.71,209.15,209.11,34.76]
[1759262391896,16.73360106,209.16,209.1,116.4]
[1759262392071,16.73360106,209.16,209.11,13.59559401]
[1759262392277,4.78102887,209.16,209.12,13.59559401]
[1759262392479,4.78082837,209.17,209.1,37.3]
[1759262392684,4.78142139,209.15,209.11,34.76]
[1759262393089,0.7,209.22,209.13,13.59559401]
[1759262393277,4.77988623,209.21,209.15,13.59559401]
[1759262393477,4.77988623,209.21,209.16,34.76]
[1759262394306,4.77988623,209.21,209.16,35.36]
[1759262394517,5.47988623,209.21,209.16,34.76]
[1759262394682,4.77988623,209.21,209.16,34.76]
[1759262394891,0.7,209.2,209.16,34.76]
[1759262395499,0.7,209.2,209.17,34.76]
[1759262395500,0.7,209.19,209.17,34.76]
[1759262395704,5.05503299,209.19,209.17,34.76]
[1759262395910,4.35503299,209.19,209.12,13.59559401]
[1759262396094,4.35503299,209.17,209.11,13.59559401]
[1759262396292,5.05503299,209.18,209.12,34.76]
[1759262396485,5.05503299,209.17,209.13,34.76]
[1759262396679,4.78102887,209.16,209.1,58.1]
[1759262396908,4.78102887,209.16,209.11,34.76]
[1759262397288,17.43360106,209.16,209.11,34.76]
[1759262397497,5.05503299,209.15,209.11,34.76]
[1759262397689,4.35503299,209.13,209.11,34.76]
[1759262397892,5.05503299,209.13,209.11,34.76]
[1759262398309,16.73360106,209.16,209.1,37.3]
[1759262398314,0.7,209.12,209.1,37.3]
[1759262398475,5.05503299,209.11,209.1,37.3]
[1759262398682,9.83720505,209.11,209.1,37.3]
[1759262398997,9.83720505,209.11,209.1,72.04]
[1759262398998,10.12152819,209.11,209.1,72.04]
[1759262399776,0.28432314,209.07,209.03,37.3]
[1759262399982,25.43935613,209.04,209.03,37.3]
[1759262400197,5.33935613,209.04,209.03,72.06]
[1759262400412,4.63935613,209.04,209.03,72.06]
[1759262400583,0.28432314,209.04,209.03,72.06]
[1759262400786,9.42312957,209.04,209.03,72.06]
[1759262401110,4.78377344,209.04,209.03,72.06]
[1759262401301,5.48377344,209.04,209.03,72.06]
[1759262401477,11.95694611,209.09,209.03,72.06]
[1759262401684,9.13766247,209.09,209.03,72.06]
[1759262401897,16.7392032,209.09,209.03,72.06]
[1759262402201,4.35503299,209.11,209.04,14.19559401]
[1759262402403,4.78194338,209.12,209.03,76.84398657]
[1759262402404,4.78194338,209.12,209.06,13.59559401]
[1759262402594,4.35503299,209.09,209.03,37.3]
[1759262402793,11.95522766,209.12,209.04,34.78]
[1759262403001,4.35503299,209.1,209.04,34.78]
[1759262403197,4.35503299,209.08,209.04,34.78]
[1759262403389,0.28432314,209.11,209.03,37.3]
[1759262403726,0.7,209.1,209.04,34.8]
[1759262403923,4.35503299,209.05,209.04,34.8]
[1759262404205,4.35503299,209.06,209.04,34.8]
[1759262404401,0.28432314,209.11,209.04,34.8]
[1759262404784,4.35503299,209.08,209.04,34.8]
[1759262404985,4.35503299,209.09,209.04,34.8]
[1759262405413,4.35503299,209.08,209.04,34.8]
[1759262405717,4.78240076,209.1,209.04,35.4]
[1759262405887,4.35503299,209.09,209.04,34.8]
[1759262406091,4.35503299,209.08,209.04,34.8]
[1759262406308,4.35503299,209.08,209.04,35.4]
[1759262406618,4.35503299,209.08,209.04,34.8]
[1759262406792,9.13795966,209.08,209.04,35.4]
[1759262406987,4.78292667,209.08,209.04,35.4]
[1759262407187,9.13795966,209.08,209.04,34.8]
[1759262407497,9.13761665,209.1,209.05,0.6]
[1759262407699,4.78258366,209.1,209.06,35.38]
[1759262407912,9.13717469,209.12,209.07,0.6]
[1759262408214,9.13717469,209.12,209.08,34.78]
[1759262408424,0.7,209.19,209.09,0.6]
[1759262408619,4.35503299,209.17,209.1,13.59559401]
[1759262408790,4.35503299,209.17,209.11,34.78]
[1759262408995,4.78101652,209.17,209.11,39.56212765]
[1759262409201,4.78101652,209.17,209.12,13.59559401]
[1759262409409,4.78101652,209.17,209.12,14.19559401]
[1759262409627,9.13604951,209.17,209.12,14.19559401]
[1759262410008,9.13604951,209.17,209.12,13.59559401]
[1759262410188,4.35503299,209.14,209.08,34.39559401]
[1759262410393,4.35503299,209.13,209.09,34.76]
[1759262410599,4.35503299,209.12,209.1,34.76]
[1759262411005,4.35503299,209.12,209.11,37.3]
[1759262411289,20.8,209.15,209.11,37.3]
[1759262411489,4.35503299,209.13,209.11,37.3]
[1759262413297,4.28194338,209.12,209.11,37.3]
[1759262413497,4.78172937,209.13,209.11,37.3]
[1759262413699,4.78172937,209.13,209.12,34.74]
[1759262414309,9.83676236,209.13,209.12,34.74]
[1759262414702,9.83676236,209.13,209.11,37.3]
[1759262414907,5.05503299,209.12,209.11,37.3]
[1759262415114,5.05503299,209.12,209.11,72.1]
[1759262415304,9.13697637,209.12,209.11,72.1]
[1759262415791,4.78194338,209.12,209.11,72.1]
[1759262416404,11.20794529,209.14,209.11,72.1]
[1759262417315,4.78101178,209.17,209.12,0.6]
[1759262417523,6.42623396,209.2,209.13,48.97559401]
[1759262417695,6.42623396,209.18,209.13,48.97559401]
[1759262417892,16.7300435,209.21,209.11,37.3]
[1759262417893,6.42623396,209.15,209.14,34.78]
[1759262418520,7.07623396,209.15,209.11,37.3]
[1759262418817,6.42623396,209.12,209.11,37.3]
[1759262419018,7.07623396,209.12,209.11,72.08]
[1759262419520,11.85817734,209.12,209.11,72.08]
[1759262419824,12.00147734,209.12,209.11,72.08]
[1759262420512,12.28580048,209.12,209.11,72.06]
[1759262420715,12.00147734,209.12,209.11,72.06]
[1759262421323,11.35147734,209.12,209.11,72.06]
[1759262421524,12.00147734,209.12,209.11,72.06]
[1759262421710,11.35147734,209.12,209.11,72.06]
[1759262423025,6.61913396,209.12,209.11,72.06]
[1759262423322,0.1929,209.12,209.11,72.66]
[1759262424910,0.1929,209.12,209.11,72.06]
[1759262426226,11.40107734,209.12,209.11,72.06]
[1759262426422,4.97484338,209.12,209.11,72.06]
[1759262427324,0.1929,209.12,209.11,72.06]
[1759262427538,0.1929,209.12,209.11,72.66]
[1759262427906,0.1929,209.12,209.11,71.98]
[1759262428137,0.1929,209.12,209.11,72.58]
[1759262428310,0.1929,209.12,209.11,86.17559401]
[1759262428928,0.1929,209.12,209.11,111.75776607]
[1759262429336,0.1,209.3,209.11,91.24208921]
[1759262429535,6.42623396,209.27,209.15,34.39559401]
[1759262429708,6.42623396,209.27,209.17,13.59559401]
[1759262429913,6.42623396,209.27,209.19,13.59559401]
[1759262429914,11.20479377,209.27,209.19,13.59559401]
[1759262430225,0.66,209.26,209.2,34.72]
[1759262431140,7.08623396,209.26,209.22,0.5]
[1759262431312,7.08623396,209.26,209.23,34.72]
[1759262431835,7.08623396,209.26,209.22,0.5]
[1759262431836,6.42623396,209.24,209.22,0.5]
[1759262432029,11.20566329,209.23,209.22,0.5]
[1759262432227,11.86566329,209.23,209.22,35.2]
[1759262433211,12.14998643,209.23,209.22,35.2]
[1759262433824,11.86566329,209.23,209.22,35.2]
[1759262435539,12.14998643,209.23,209.22,35.2]
[1759262435714,0.28432314,209.22,209.11,37.9]
[1759262435910,6.42623396,209.15,209.11,37.3]
[1759262436105,6.42623396,209.14,209.11,37.3]
[1759262436312,6.42623396,209.13,209.11,37.3]
[1759262436611,0.66,209.13,209.11,37.3]
[1759262437014,0.66,209.16,209.12,34.66]
[1759262437205,6.42623396,209.13,209.12,34.66]
[1759262437631,4.78171472,209.13,209.12,34.66]
[1759262439510,4.78148542,209.15,209.12,34.66]
[1759262439710,4.78102887,209.16,209.12,34.66]
[1759262439936,6.42623396,209.18,209.12,35.26]
[1759262440124,0.66,209.29,209.16,13.59559401]
[1759262440321,24.1058183,209.36,209.18,13.59559401]
[1759262440322,0.66,209.28,209.18,13.59559401]
[1759262440634,6.42623396,209.25,209.18,13.59559401]
[1759262441444,0.66,209.26,209.17,0.6]
[1759262441647,4.78011472,209.2,209.18,34.98]
[1759262441818,4.78011472,209.2,209.19,34.98]
[1759262442520,23.81663548,209.2,209.14,0.6]
[1759262442722,4.77985649,209.22,209.14,20.8]
[1759262442930,0.1,209.33,209.14,20.8]
[1759262442931,6.42623396,209.24,209.15,49.19559401]
[1759262443130,6.42623396,209.24,209.17,13.59559401]
[1759262443438,6.42623396,209.23,209.18,35.0]
[1759262443622,11.20612019,209.21,209.18,35.0]
[1759262444136,23.15583578,209.21,209.14,34.39559401]
[1759262444441,6.42623396,209.18,209.15,35.0]
[1759262444623,6.42623396,209.17,209.16,35.0]
[1759262444816,4.77976753,209.22,209.16,35.0]
[1759262445012,6.42623396,209.2,209.16,35.0]
[1759262445322,6.42623396,209.18,209.16,35.0]
[1759262445637,6.42623396,209.19,209.16,35.0]
[1759262445946,6.42623396,209.17,209.16,35.0]
[1759262446443,11.20680571,209.18,209.16,35.0]
[1759262447341,5.44057175,209.18,209.16,35.0]
[1759262447546,7.08623396,209.17,209.16,35.0]
[1759262447728,4.78102887,209.16,209.11,37.3]
[1759262448039,4.78102887,209.16,209.12,34.98]
[1759262448040,7.08623396,209.15,209.12,34.98]
[1759262448347,23.15983502,209.16,209.12,34.98]
[1759262448516,4.78060988,209.18,209.12,35.58]
[1759262448721,6.42623396,209.17,209.12,35.58]
[1759262449139,7.08623396,209.17,209.12,34.98]
[1759262449450,0.66,209.17,209.12,34.98]
[1759262449630,6.42623396,209.16,209.12,34.98]
[1759262449831,4.78125747,209.15,209.12,34.98]
[1759262450022,11.20749143,209.15,209.12,34.98]
[1759262450214,23.1606351,209.15,209.12,34.98]
[1759262450437,23.1606351,209.15,209.13,34.96]
[1759262450748,23.8206351,209.15,209.13,34.96]
[1759262451647,16.73440114,209.15,209.13,34.96]
[1759262451856,6.42623396,209.14,209.13,34.96]
[1759262452222,0.94432314,209.18,209.13,34.96]
[1759262452439,6.42623396,209.16,209.13,34.96]
[1759262453326,6.42623396,209.17,209.13,34.96]
[1759262453545,4.78011472,209.2,209.14,0.6]
[1759262453726,11.94907937,209.23,209.15,18.376823]
[1759262453926,11.94907937,209.23,209.16,35.54]
[1759262454123,18.37531333,209.23,209.17,0.6]
[1759262454526,6.42623396,209.22,209.16,34.94]
[1759262454755,12.60907937,209.23,209.17,34.96]
[1759262454941,6.42623396,209.21,209.17,34.96]
[1759262455253,7.08623396,209.21,209.18,34.96]
[1759262455448,6.42623396,209.21,209.19,34.96]
[1759262455747,6.42623396,209.2,209.19,34.96]
[1759262455953,23.81663548,209.2,209.11,37.9]
[1759262456137,6.42623396,209.17,209.12,34.94]
[1759262456455,6.42623396,209.16,209.12,34.94]
[1759262456628,4.77965777,209.22,209.14,13.59559401]
[1759262456832,4.77965777,209.22,209.15,35.54]
[1759262458056,6.42623396,209.22,209.15,40.32117994]
[1759262458223,6.42623396,209.22,209.15,35.54]
[1759262458835,6.42623396,209.19,209.15,34.94]
[1759262459038,6.42623396,209.2,209.15,34.94]
[1759262459234,6.42623396,209.2,209.15,35.54]
[1759262460170,16.72960182,209.21,209.15,35.54]
[1759262460453,6.42623396,209.2,209.15,35.54]
[1759262461059,4.77988623,209.21,209.15,35.54]
[1759262461234,6.42623396,209.2,209.15,35.54]
[1759262461437,11.20612019,209.21,209.15,34.94]
[1759262461631,0.28432314,209.24,209.16,14.19559401]
[1759262461632,11.20565366,209.24,209.16,14.19559401]
[1759262461934,4.7794197,209.24,209.18,13.59559401]
[1759262462130,4.7794197,209.24,209.19,35.48]
[1759262462544,11.20565366,209.24,209.19,35.48]
[1759262462945,23.15365595,209.24,209.19,35.48]
[1759262463155,6.42623396,209.22,209.19,34.88]
[1759262463333,6.42623396,209.22,209.17,0.6]
[1759262463537,6.42623396,209.22,209.18,34.86]
[1759262463740,6.42623396,209.21,209.15,0.6]
[1759262463939,17.38742199,209.24,209.16,34.86]
[1759262464252,6.42623396,209.22,209.16,35.46]
[1759262464446,6.42623396,209.22,209.16,40.24097528]
[1759262464755,6.42623396,209.23,209.17,14.19559401]
[1759262464960,6.42623396,209.23,209.17,93.29559401]
[1759262465153,4.7794197,209.24,209.18,0.6]
[1759262465748,11.20565366,209.24,209.18,0.6]
[1759262466262,23.15365595,209.24,209.18,0.6]
[1759262466654,6.42623396,209.23,209.19,34.84]
[1759262466960,6.42623396,209.22,209.19,34.84]
[1759262467164,6.42623396,209.23,209.17,79.1]
[1759262467355,4.7794197,209.24,209.18,49.01559401]
[1759262467562,11.20521798,209.25,209.19,0.6]
[1759262467942,23.15264928,209.25,209.18,48.41559401]
[1759262468465,6.42623396,209.24,209.18,48.41559401]
[1759262469173,6.42623396,209.23,209.18,34.82]
[1759262469352,6.42623396,209.22,209.19,34.78]
[1759262469551,6.42623396,209.24,209.19,35.38]
[1759262470070,6.42623396,209.24,209.19,50.06101275]
[1759262470258,23.15264928,209.25,209.2,0.6]
[1759262470457,6.42623396,209.23,209.19,49.46101275]
[1759262470654,6.42623396,209.21,209.2,34.76]
[1759262471571,0.66,209.24,209.2,34.76]
[1759262471874,6.42623396,209.22,209.17,79.1]
[1759262472169,0.66,209.22,209.18,34.76]
[1759262472351,6.42623396,209.21,209.18,34.76]
[1759262472856,4.78011472,209.2,209.17,93.34053802]
[1759262473051,4.78011472,209.2,209.18,34.78]
[1759262473273,4.78011472,209.2,209.18,37.28]
[1759262473569,7.08623396,209.19,209.18,37.28]
[1759262474068,7.08623396,209.19,209.18,72.04]
[1759262474452,7.08623396,209.19,209.08,4.7826921]
[1759262474453,7.3705571,209.19,209.16,37.28]
[1759262474655,0.28432314,209.16,209.03,0.6]
[1759262474964,6.42623396,209.11,209.06,13.59559401]
[1759262475156,6.42623396,209.11,209.07,34.66]
[1759262475356,11.20830912,209.12,209.07,34.66]
[1759262475670,6.42623396,209.11,209.07,48.75950767]
[1759262475971,11.20830912,209.12,209.07,49.35950767]
[1759262476148,6.42623396,209.11,209.07,49.35950767]
[1759262476867,4.78240076,209.1,209.07,48.75950767]
[1759262477372,4.78240076,209.1,209.07,49.35950767]
[1759262477875,4.78240076,209.1,209.07,48.75950767]
[1759262478365,4.34901931,209.09,209.07,34.66]
[1759262478565,4.34901931,209.1,209.04,58.08]
[1759262478745,4.78217498,209.11,209.05,34.74]
[1759262478945,12.6544094,209.13,209.05,35.34]
[1759262478946,5.48194232,209.13,209.05,35.34]
[1759262479169,5.48194232,209.13,209.05,40.12334751]
[1759262479374,4.34901931,209.15,209.06,14.19559401]
[1759262479556,11.95242752,209.17,209.07,0.6]
[1759262479557,4.78102887,209.16,209.07,0.6]
[1759262479749,4.78102887,209.16,209.09,13.59559401]
[1759262480073,4.78102887,209.16,209.1,0.6]
[1759262480372,4.34901931,209.18,209.11,34.74]
[1759262480570,4.78034322,209.19,209.11,35.34]
[1759262480771,4.78034322,209.19,209.12,13.59559401]
[1759262480966,4.34901931,209.22,209.14,13.59559401]
[1759262481150,4.34901931,209.22,209.15,35.32]
[1759262481349,4.77988623,209.21,209.16,37.28]
[1759262481951,9.12890554,209.21,209.16,37.28]
[1759262482150,4.34901931,209.18,209.16,37.28]
[1759262482351,5.04901931,209.17,209.16,37.28]
[1759262482561,5.04901931,209.17,209.16,71.98]
[1759262483376,9.82981961,209.17,209.16,71.98]
[1759262483875,9.12981961,209.17,209.16,71.98]
[1759262484074,4.7808003,209.17,209.16,71.98]
[1759262484376,9.12961871,209.18,209.16,71.98]
[1759262484555,4.7805994,209.18,209.16,71.98]
[1759262484978,4.78029376,209.2,209.16,71.98]
[1759262485293,16.72908233,209.22,209.16,71.98]
[1759262485576,21.07810164,209.22,209.16,71.98]
[1759262485776,9.12867708,209.22,209.16,76.76102098]
[1759262485956,4.34901931,209.22,209.16,76.76102098]
[1759262486157,9.12822022,209.24,209.17,14.19559401]
[1759262486457,4.77920091,209.24,209.19,13.59559401]
[1759262486652,4.77920091,209.24,209.2,34.68]
[1759262487655,0.72,209.27,209.2,34.68]
[1759262487973,4.34901931,209.25,209.2,34.68]
[1759262488565,4.77874414,209.26,209.21,0.6]
[1759262489074,9.12776345,209.26,209.21,0.6]
[1759262489279,4.77920091,209.24,209.2,34.68]
[1759262489956,4.77920091,209.24,209.19,13.59559401]
[1759262490157,4.77920091,209.24,209.2,34.64]
[1759262490363,4.77920091,209.24,209.21,34.64]
[1759262490883,9.12792114,209.26,209.21,35.24]
[1759262491073,4.77890183,209.26,209.21,35.24]
[1759262491271,9.12792114,209.26,209.21,34.64]
[1759262491579,4.77890183,209.26,209.21,34.64]
[1759262491782,4.77890183,209.26,209.21,35.24]
[1759262492457,4.34901931,209.26,209.21,35.24]
[1759262492775,4.34901931,209.27,209.22,0.6]
[1759262492971,4.77828746,209.28,209.22,79.7]
[1759262493164,4.34901931,209.27,209.22,79.7]
[1759262493483,9.12730677,209.28,209.23,0.6]
[1759262493686,9.12730677,209.28,209.24,34.58]
[1759262494483,9.12730677,209.28,209.24,35.18]
[1759262494972,9.12730677,209.28,209.24,34.58]
[1759262495182,21.79302542,209.28,209.24,34.58]
[1759262495367,4.34901931,209.27,209.24,34.58]
[1759262496473,21.79302542,209.28,209.24,34.58]
[1759262496667,0.72,209.27,209.22,79.1]
[1759262496867,5.06901931,209.26,209.23,34.58]
[1759262497272,5.06901931,209.25,209.22,79.1]
[1759262497478,5.06901931,209.25,209.23,34.58]
[1759262498269,2.50690634,209.25,209.23,34.58]
[1759262498663,4.77920091,209.24,209.19,92.69559401]
[1759262498986,4.77920091,209.24,209.2,34.58]
[1759262499397,2.50690634,209.23,209.16,37.88]
[1759262499767,2.50690634,209.23,209.17,34.58]
[1759262500077,1.78690634,209.22,209.17,34.58]
[1759262500284,2.50690634,209.23,209.17,35.18]
[1759262500677,18.51570855,209.22,209.17,34.58]
[1759262500884,0.72,209.21,209.17,34.58]
[1759262501187,18.51570855,209.22,209.17,34.58]
[1759262501382,19.23570855,209.22,209.17,34.58]
[1759262502677,18.51570855,209.22,209.17,34.58]
[1759262502881,0.72,209.21,209.17,34.58]
[1759262503192,0.72,209.2,209.16,37.28]
[1759262503494,1.78690634,209.17,209.16,37.28]
[1759262503700,2.50690634,209.17,209.16,71.86]
[1759262504190,0.72,209.17,209.16,71.86]
[1759262504392,16.72880221,209.22,209.16,72.46]
[1759262504973,16.72880221,209.22,209.16,71.86]
[1759262505176,2.50690634,209.21,209.16,71.86]
[1759262505398,1.78690634,209.2,209.16,71.86]
[1759262506066,2.50690634,209.2,209.16,71.86]
[1759262506291,1.78690634,209.21,209.16,72.46]
[1759262506875,2.50690634,209.21,209.16,71.86]
[1759262507076,16.73120129,209.19,209.16,71.86]
[1759262507274,2.50690634,209.18,209.16,37.28]
[1759262507475,2.50690634,209.18,209.17,34.58]
[1759262509077,7.28747809,209.18,209.17,34.58]
[1759262509995,5.50057175,209.18,209.17,34.58]
[1759262510209,7.28747809,209.18,209.17,34.58]
[1759262510997,11.95085807,209.19,209.17,34.58]
[1759262511213,13.73776441,209.19,209.17,34.58]
[1759262511491,1.78690634,209.18,209.17,34.58]
[1759262513199,4.78057175,209.18,209.17,34.58]
[1759262513388,7.27747809,209.18,209.17,34.58]
[1759262513803,6.56747809,209.18,209.17,34.58]